{"text_format":"3","workbook":"xlsx","n_sheets":4,"sheets":["Mijlpalen","Roadmap","Over","Grafiekgegevens"],"not_rendered":{"charts":1,"defined_names":2},"read":"whole","date_system":"1900"}

{"sheet":"Mijlpalen","index":0,"n_rows":27,"n_cols":5,"rows_kept":27}
["Maak in dit werkblad een Roadmap door belangrijke mijlpalen en activiteiten in te voeren.\nDe titel van dit werkblad staat in cel C1. \nInformatie over hoe u dit werkblad gebruikt, waaronder instructies voor schermlezers, staat in het werkblad Over.\nNavigeer verder omlaag in kolom A voor verdere instructies.",null,"Mijlpalen"]
["Tabelkoppen staan in de cellen C2 t/m E2. Gebruik opties in Sorteren en filteren om specifieke vermeldingen te sorteren of zoeken.\nVoer in de tabel Mijlpalen met datums in en stel een positie in om de mijlpaal op de grafiek te plaatsen, beginnend in cel C3.\nKolom B is verborgen. De grafiek wordt op basis van deze gegevens gegenereerd en heeft een schuifbalk om delen van de tijdlijn te bekijken. Kolom B helpt te bepalen welke mijlpalen op de grafiek worden geplaatst wanneer de schuifbalk wordt vergroot. \nWaarschuwing: Als u de inhoud van kolom B verwijdert of wijzigt, kan dit de integriteit beïnvloeden van de grafiek die in deze werkmap is ingebouwd.","Nr.","Positie","Datum","Mijlpaal"]
["Voer in cel C1 de Positie in waar de datum en mijlpaal op de grafiek worden geplaatst. Voer een positief getal tussen de 1 en 3 in om de mijlpaal boven de tijdlijn te plaatsen. Voer een negatief getal tussen de -1 en -3 in om de mijlpaal onder de tijdlijn te plaatsen.\nVoer in de tabel de datum en mijlpaal of activiteit in kolom D en E in.\nHerhaal dit patroon voor elke nieuwe rij in de tabel rechts.\nVoorbeeldgegevens staan in de rijen 3 t/m 26. Wijzig of verwijder voorbeeldinhoud om uw eigen roadmap te maken.\nGa naar cel A27 voor de volgende instructie.",{"$f":"ROW($A1)","v":1},1,{"$f":"TODAY()","v":"2018-06-29"},"Begin"]
[null,{"$f":"ROW($A2)","v":2},-2,{"$f":"D3+10","v":"2018-07-09"},"Probleemanalyse\nactiviteit 1"]
[null,3,1,{"$f":"D4+20","v":"2018-07-29"},"Bedrijfsscenario ontwikkelen\nactiviteit 1\nactiviteit 2"]
[null,4,-1,{"$f":"D5+30","v":"2018-08-28"},"Presentatie controleren"]
[null,5,{"v":-0.5,"d":"-1"},{"$f":"D6+40","v":"2018-10-07"},"Aftrap uitvoeren\nactiviteit 1\nactiviteit 2"]
[null,6,2,{"$f":"D7+50","v":"2018-11-26"},"Uitlijning uitvoeren\nactiviteit 1\nactiviteit 2\nactiviteit 3"]
[null,{"$f":"ROW($A7)","v":7},{"v":0.5,"d":"1"},{"$f":"D8+60","v":"2019-01-25"},"Belanghebbenden betrekken"]
[null,8,-1,{"$f":"D9+70","v":"2019-04-05"},"Resources selecteren"]
[null,9,{"v":0.5,"d":"1"},{"$f":"D10+80","v":"2019-06-24"},"Team samenstellen\nactiviteit 1 "]
[null,10,-2,{"$f":"D11+90","v":"2019-09-22"},"Teamaftrap\nactiviteit 1 \nactiviteit 2\nactiviteit 3\nactiviteit 4"]
[null,11,3,{"$f":"D12+100","v":"2019-12-31"},"Gegevensverzameling starten"]
[null,12,-1,{"$f":"D13+90","v":"2020-03-30"},"Gegevensanalyse"]
[null,13,1,{"$f":"D14+80","v":"2020-06-18"},"Ontwerpen"]
[null,14,1,{"$f":"D15+70","v":"2020-08-27"},"Proof of Concept"]
[null,15,-3,{"$f":"D16+60","v":"2020-10-26"},"Test en analyse"]
[null,16,-2,{"$f":"D17+50","v":"2020-12-15"},"Opnieuw ontwerpen"]
[null,17,2,{"$f":"D18+40","v":"2021-01-24"},"Opnieuw ontwikkelen"]
[null,18,-1,{"$f":"D19+30","v":"2021-02-23"},"Test en analyse"]
[null,19,1,{"$f":"D20+20","v":"2021-03-15"},"Opnieuw ontwerpen"]
[null,20,-3,{"$f":"D21+10","v":"2021-03-25"},"Opnieuw ontwikkelen"]
[null,21,2,{"$f":"D22+20","v":"2021-04-14"},"Laatste test"]
[null,22,1,{"$f":"D23+30","v":"2021-05-14"},"Bètatest"]
[null,23,-3,{"$f":"D24+40","v":"2021-06-23"},"Controleren"]
[null,24,-2,{"$f":"D25+50","v":"2021-08-12"},"Vrijgeven aan marketing"]
["Als u nog meer rijen aan de tabel Roadmap Mijlpalen wilt toevoegen, voegt u boven deze rij gewoon een nieuwe rij in.\nEr zijn geen verdere instructies in dit werkblad.",null,"Als u nog meer mijlpalen wilt toevoegen, voegt u boven deze lijn nieuwe rijen in."]

{"sheet":"Roadmap","index":1,"n_rows":3,"n_cols":4,"rows_kept":3}
["Een grafiek met de mijlpalen uit het werkblad Mijlpalen staat in dit werkblad. \nJaren staan in de cellen B2, C2 en D2 en hebben de stijl Koptekst 3.\nEr worden 10 mijlpalen tegelijk op de grafiek geplaatst. \nGebruik de schuifbalk in de cellen B4 t/m D4 om door de roadmap te navigeren.\nTijdlijnjaren staan in de cellen B3 t/m D3.\nEr zijn geen verdere instructies in dit werkblad."]
[]
[null,{"$f":"Grafiekgegevens!B20","v":2018},{"$f":"Grafiekgegevens!B21","v":""},{"$f":"Grafiekgegevens!B22","v":2019}]

{"sheet":"Over","index":2,"n_rows":5,"n_cols":1,"rows_kept":5}
["Over deze werkmap"]
["Gids voor schermlezers"]
["Er zijn 4 werkbladen in deze werkmap. \n\nMijlpalen\nRoadmap\nOver\nGrafiekgegevens (verborgen)\n\nDe instructies voor elk werkblad staan in kolom A, beginnend in cel A1 van elk werkblad. Ze zijn geschreven met verborgen tekst. Elke stap leidt u door de informatie in die rij. Elke volgende stap gaat verder in cel A2, A3 enzovoort, tenzij uitdrukkelijk anderszins vermeld, bijvoorbeeld wanneer de instructietekst voor de volgende stap \"Ga naar cel A6\" is. \n\nVerborgen tekst wordt niet afgedrukt.\n\nAls u deze instructies van een werkblad wilt verwijderen, verwijdert u gewoon kolom A.\n"]
["Deze roadmap maakt gebruik van posities om mijlpalen en activiteiten op de grafiek te plaatsen. Posities kunnen worden gebruikt om gewicht aan een mijlpaal of activiteit toe te voegen. Pas de waarden gewoon naar wens aan. Mijlpaal/activiteit 3 kan bijvoorbeeld meer gewicht hebben dan mijlpaal/activiteit 2. Om dit op de grafiek aan te geven, maakt u de Positie-waarde voor mijlpaal/activiteit 3 gewoon hoger dan voor mijlpaal/activiteit 2.  \n"]
["Dit is de laatste instructie in dit werkblad."]

{"sheet":"Grafiekgegevens","index":3,"n_rows":26,"n_cols":4,"rows_kept":26,"hidden":true}
["Gegevens voor het maken van de dynamische grafiek staan in dit werkblad. Verwijder dit werkblad niet!\nAls u dit werkblad verwijdert, kan dit de dynamische functie van de werkmap beïnvloeden.","Verwijder dit werkblad niet!"]
["De titel voor de tabel staat in cel B2.","Inhoud van dynamische grafiek"]
["Tabelkoppen staan in de cellen B3 t/m D3. \nDeze tabel wordt automatisch bijgewerkt op basis van de inhoud die in het werkblad Mijlpalen wordt ingevoerd.\nWaarschuwing: Als u inhoud in deze tabel wijzigt of verwijdert, kan dit de dynamische functie van de Roadmap-grafiek in het werkblad Roadmap beïnvloeden.\nGa naar cel A15 voor de volgende instructie.","Datum","Gebeurtenissen","Positie"]
[null,{"$f":"IFERROR(IF(LEN(Mijlpalen!D3)=0,\"\",INDEX(RoadmapMijlpalen[],Mijlpalen!$B3+$B$17,3)),\"\")","v":"2018-06-29"},{"$f":"IFERROR(IF(LEN(Mijlpalen!E3)=0,\"\",INDEX(RoadmapMijlpalen[],Mijlpalen!$B3+$B$17,4)),\"\")","v":"Begin"},{"$f":"IFERROR(INDEX(RoadmapMijlpalen[],Mijlpalen!$B3+$B$17,2),\"\")","v":1}]
[null,{"$f":"IFERROR(IF(LEN(Mijlpalen!D4)=0,\"\",INDEX(RoadmapMijlpalen[],Mijlpalen!$B4+$B$17,3)),\"\")","v":"2018-07-09"},{"$f":"IFERROR(IF(LEN(Mijlpalen!E4)=0,\"\",INDEX(RoadmapMijlpalen[],Mijlpalen!$B4+$B$17,4)),\"\")","v":"Probleemanalyse\nactiviteit 1"},{"$f":"IFERROR(INDEX(RoadmapMijlpalen[],Mijlpalen!$B4+$B$17,2),\"\")","v":-2}]
[null,{"$f":"IFERROR(IF(LEN(Mijlpalen!D5)=0,\"\",INDEX(RoadmapMijlpalen[],Mijlpalen!$B5+$B$17,3)),\"\")","v":"2018-07-29"},{"$f":"IFERROR(IF(LEN(Mijlpalen!E5)=0,\"\",INDEX(RoadmapMijlpalen[],Mijlpalen!$B5+$B$17,4)),\"\")","v":"Bedrijfsscenario ontwikkelen\nactiviteit 1\nactiviteit 2"},{"$f":"IFERROR(INDEX(RoadmapMijlpalen[],Mijlpalen!$B5+$B$17,2),\"\")","v":1}]
[null,{"$f":"IFERROR(IF(LEN(Mijlpalen!D6)=0,\"\",INDEX(RoadmapMijlpalen[],Mijlpalen!$B6+$B$17,3)),\"\")","v":"2018-08-28"},{"$f":"IFERROR(IF(LEN(Mijlpalen!E6)=0,\"\",INDEX(RoadmapMijlpalen[],Mijlpalen!$B6+$B$17,4)),\"\")","v":"Presentatie controleren"},{"$f":"IFERROR(INDEX(RoadmapMijlpalen[],Mijlpalen!$B6+$B$17,2),\"\")","v":-1}]
[null,{"$f":"IFERROR(IF(LEN(Mijlpalen!D7)=0,\"\",INDEX(RoadmapMijlpalen[],Mijlpalen!$B7+$B$17,3)),\"\")","v":"2018-10-07"},{"$f":"IFERROR(IF(LEN(Mijlpalen!E7)=0,\"\",INDEX(RoadmapMijlpalen[],Mijlpalen!$B7+$B$17,4)),\"\")","v":"Aftrap uitvoeren\nactiviteit 1\nactiviteit 2"},{"$f":"IFERROR(INDEX(RoadmapMijlpalen[],Mijlpalen!$B7+$B$17,2),\"\")","v":-0.5}]
[null,{"$f":"IFERROR(IF(LEN(Mijlpalen!D8)=0,\"\",INDEX(RoadmapMijlpalen[],Mijlpalen!$B8+$B$17,3)),\"\")","v":"2018-11-26"},{"$f":"IFERROR(IF(LEN(Mijlpalen!E8)=0,\"\",INDEX(RoadmapMijlpalen[],Mijlpalen!$B8+$B$17,4)),\"\")","v":"Uitlijning uitvoeren\nactiviteit 1\nactiviteit 2\nactiviteit 3"},{"$f":"IFERROR(INDEX(RoadmapMijlpalen[],Mijlpalen!$B8+$B$17,2),\"\")","v":2}]
[null,{"$f":"IFERROR(IF(LEN(Mijlpalen!D9)=0,\"\",INDEX(RoadmapMijlpalen[],Mijlpalen!$B9+$B$17,3)),\"\")","v":"2019-01-25"},{"$f":"IFERROR(IF(LEN(Mijlpalen!E9)=0,\"\",INDEX(RoadmapMijlpalen[],Mijlpalen!$B9+$B$17,4)),\"\")","v":"Belanghebbenden betrekken"},{"$f":"IFERROR(INDEX(RoadmapMijlpalen[],Mijlpalen!$B9+$B$17,2),\"\")","v":0.5}]
[null,{"$f":"IFERROR(IF(LEN(Mijlpalen!D10)=0,\"\",INDEX(RoadmapMijlpalen[],Mijlpalen!$B10+$B$17,3)),\"\")","v":"2019-04-05"},{"$f":"IFERROR(IF(LEN(Mijlpalen!E10)=0,\"\",INDEX(RoadmapMijlpalen[],Mijlpalen!$B10+$B$17,4)),\"\")","v":"Resources selecteren"},{"$f":"IFERROR(INDEX(RoadmapMijlpalen[],Mijlpalen!$B10+$B$17,2),\"\")","v":-1}]
[null,{"$f":"IFERROR(IF(LEN(Mijlpalen!D11)=0,\"\",INDEX(RoadmapMijlpalen[],Mijlpalen!$B11+$B$17,3)),\"\")","v":"2019-06-24"},{"$f":"IFERROR(IF(LEN(Mijlpalen!E11)=0,\"\",INDEX(RoadmapMijlpalen[],Mijlpalen!$B11+$B$17,4)),\"\")","v":"Team samenstellen\nactiviteit 1 "},{"$f":"IFERROR(INDEX(RoadmapMijlpalen[],Mijlpalen!$B11+$B$17,2),\"\")","v":0.5}]
[null,{"$f":"IFERROR(IF(LEN(Mijlpalen!D12)=0,\"\",INDEX(RoadmapMijlpalen[],Mijlpalen!$B12+$B$17,3)),\"\")","v":"2019-09-22"},{"$f":"IFERROR(IF(LEN(Mijlpalen!E12)=0,\"\",INDEX(RoadmapMijlpalen[],Mijlpalen!$B12+$B$17,4)),\"\")","v":"Teamaftrap\nactiviteit 1 \nactiviteit 2\nactiviteit 3\nactiviteit 4"},{"$f":"IFERROR(INDEX(RoadmapMijlpalen[],Mijlpalen!$B12+$B$17,2),\"\")","v":-2}]
[]
["Voer een incrementele waarde in om door de roadmap te scrollen. De titel voor deze functie staat in cel B15.\nEen tabel met een kop en één waarde staat in cel B16 en B17.\nGa naar cel A19 voor de volgende instructie.","Scrollfunctie"]
[null,"Rij-increment"]
[null,0]
[]
["De Roadmap-grafiek zet de jaren voor de tijdlijn uit. Hiervoor moeten de jaren uit de lijst met mijlpalen worden gehaald. \nDe titel voor deze sectie is \"Jaar\" in cel B19. \nDe jaarwaarden worden automatisch gegenereerd in de cellen C20 t/m C22.\nWaarschuwing: Als u deze jaren verwijdert of wijzigt, kan dit de nauwkeurigheid van de Roadmap-grafiek beïnvloeden.\nGa naar cel A24 voor de volgende instructie.","Jaar"]
[null,{"$f":"IFERROR(YEAR(B4),\"\")","v":2018},"<-- jaar voor de beginpositie van de roadmap"]
[null,{"$f":"IFERROR(IF(YEAR($B$9)=$B$20,\"\",YEAR($B$9)),\"\")","v":""},"<-- jaar voor de middelste periode van de roadmap (NB: dit kan leeg zijn als het hetzelfde jaar is als de beginpositie van de roadmap)"]
[null,{"$f":"IFERROR(IF(YEAR($B$13)=$B$20,\"\",YEAR($B$13)),\"\")","v":2019},"<-- jaar voor de eindpositie van de roadmap (NB: dit kan leeg zijn als het hetzelfde jaar is als de beginpositie van de roadmap)"]
[]
["Ringmarkeringen in de Roadmap-grafiek bevatten datums uit de tabel Inhoud van dynamische grafiek in dit werkblad. De datums zijn de Eerste datum in cel C24, de Middelste datum in cel C25 en de Laatste datum in cel C26.\nEr zijn geen verdere instructies in dit werkblad.","Eerste datum",{"$f":"B4","v":"2018-06-29"}]
[null,"Middelste datum",{"$f":"B9","v":"2018-11-26"}]
[null,"Laatste datum",{"$f":"B13","v":"2019-09-22"}]